bitfinex-derivatives/quotes_BTCF0:USTF0_20251228
["timestamp","ask_amount","ask_price","bid_price","bid_amount"]
[1766945341627,0.02387948,87742.0,87732.0,0.03612]
[1766945341827,0.01157584,87743.0,87732.0,0.03612]
[1766945342032,0.02387948,87742.0,87732.0,0.03612]
[1766945342232,0.01157584,87743.0,87732.0,0.03612]
[1766945342432,0.02388219,87742.0,87732.0,0.03612]
[1766945342631,0.01157584,87743.0,87732.0,0.03612]
[1766945342833,0.02388217,87742.0,87732.0,0.03612]
[1766945343129,0.00017094,87743.0,87732.0,0.03612]
[1766945343330,0.02388217,87742.0,87732.0,0.03612]
[1766945343530,0.00017094,87743.0,87732.0,0.03612]
[1766945343735,0.0238854,87742.0,87732.0,0.03612]
[1766945343930,0.00017094,87743.0,87732.0,0.03612]
[1766945344137,0.02388541,87742.0,87732.0,0.03612]
[1766945344332,0.02388922,87741.0,87732.0,0.03612]
[1766945344631,0.00017094,87743.0,87732.0,0.03612]
[1766945344828,0.02388921,87742.0,87732.0,0.03612]
[1766945345025,0.00017094,87743.0,87716.0,0.01311395]
[1766945345334,0.09241217,87742.0,87721.0,0.0114076]
[1766945345528,0.0114054,87739.0,87721.0,0.0114076]
[1766945346128,0.0114054,87739.0,87721.0,0.01157854]
[1766945346328,0.0114057,87737.0,87721.0,0.00017094]
[1766945348339,0.0114056,87737.0,87721.0,0.00017094]
[1766945352038,0.0114062,87733.0,87712.0,0.0114088]
[1766945352240,0.0114062,87733.0,87714.0,0.0114086]
[1766945352536,0.0114062,87733.0,87716.0,0.0114083]
[1766945352742,0.0114058,87736.0,87717.0,0.0114082]
[1766945353239,0.0114066,87730.0,87718.0,0.00017094]
[1766945353432,0.00017094,87735.0,87715.0,0.09696]
[1766945353628,0.02393116,87734.0,87715.0,0.09696]
[1766945353843,0.0114065,87730.0,87715.0,0.09696]
[1766945355138,0.0114062,87733.0,87715.0,0.09696]
[1766945355333,0.02392747,87732.0,87715.0,0.09696]
[1766945355533,0.0114062,87733.0,87715.0,0.09696]
[1766945355743,0.02392448,87732.0,87715.0,0.09696]
[1766945355930,0.0353304,87731.0,87715.0,0.09696]
[1766945356135,0.0114069,87728.0,87715.0,0.09696]
[1766945356645,0.0114065,87731.0,87715.0,0.09696]
[1766945356844,0.02392165,87730.0,87715.0,0.09696]
[1766945357045,0.0114065,87731.0,87715.0,0.09696]
[1766945357238,0.02392166,87730.0,87715.0,0.09696]
[1766945357542,0.0114067,87729.0,87715.0,0.09696]
[1766945358747,0.09696,87734.0,87715.0,0.09696]
[1766945359046,0.0114067,87730.0,87715.0,0.09696]
[1766945359849,0.0114069,87728.0,87715.0,0.09696]
[1766945360236,0.10021821,87730.0,87715.0,0.08196]
[1766945360439,0.023913,87729.0,87714.0,0.00017094]
[1766945360750,0.023913,87728.0,87714.0,0.00017094]
[1766945360950,0.023913,87727.0,87714.0,0.00017094]
[1766945361144,0.10021821,87730.0,87714.0,0.00017094]
[1766945361449,0.0114071,87726.0,87714.0,0.00017094]
[1766945362448,0.10023144,87724.0,87714.0,0.00017094]
[1766945373454,0.10023144,87730.0,87714.0,0.00017094]
[1766945373654,0.02401776,87729.0,87714.0,0.00017094]
[1766945373862,0.02401776,87728.0,87714.0,0.00017094]
[1766945374064,0.02401776,87727.0,87714.0,0.00017094]
[1766945374251,0.02401776,87726.0,87714.0,0.00017094]
[1766945374456,0.02401776,87725.0,87714.0,0.00017094]
[1766945374656,0.02401776,87724.0,87714.0,0.00017094]
[1766945374852,0.11163794,87730.0,87714.0,0.00017094]
[1766945375064,0.02402231,87729.0,87714.0,0.00017094]
[1766945375266,0.02402231,87728.0,87714.0,0.00017094]
[1766945375457,0.11163794,87730.0,87714.0,0.00017094]
[1766945375458,0.02402231,87727.0,87714.0,0.00017094]
[1766945375658,0.02402231,87726.0,87714.0,0.00017094]
[1766945375859,0.02402231,87725.0,87714.0,0.00017094]
[1766945376167,0.02402231,87724.0,87714.0,0.00017094]
[1766945376359,0.02402231,87723.0,87714.0,0.00017094]
[1766945376560,0.02402231,87722.0,87714.0,0.00017094]
[1766945376766,0.02402231,87721.0,87714.0,0.00017094]
[1766945377071,0.02402231,87720.0,87714.0,0.00017094]
[1766945377268,0.02402231,87719.0,87714.0,0.00017094]
[1766945377572,1e-08,87718.0,87714.0,0.01157944]
[1766945377764,0.05712,87728.0,87714.0,0.01157944]
[1766945379574,0.05712,87728.0,87714.0,0.00017094]
[1766945379763,0.10023144,87730.0,87714.0,0.00017094]
[1766945379965,4e-08,87730.0,87724.0,0.0114072]
[1766945380162,0.10023144,87740.0,87714.0,0.00017094]
[1766945380465,0.05712,87739.0,87714.0,0.00017094]
[1766945380775,0.10023144,87730.0,87714.0,0.00017094]
[1766945381077,0.10023144,87730.0,87722.0,0.0114075]
[1766945381665,0.05712,87739.0,87722.0,0.0114075]
[1766945381868,0.10023144,87732.0,87722.0,0.0114075]
[1766945382069,0.10023144,87732.0,87724.0,0.0114072]
[1766945382668,0.05712,87739.0,87724.0,0.0114072]
[1766945383175,0.05712,87739.0,87718.0,0.05712]
[1766945383676,0.05712,87739.0,87720.0,0.10023144]
[1766945384178,0.05712,87739.0,87728.0,0.0114067]
[1766945385479,0.05712,87739.0,87725.0,0.0114072]
[1766945386074,0.05712,87739.0,87720.0,0.10023144]
[1766945386871,0.00017094,87742.0,87720.0,0.10023144]
[1766945387072,0.05712,87741.0,87720.0,0.10023144]
[1766945387279,0.05712,87741.0,87725.0,0.0114071]
[1766945389080,0.05712,87741.0,87718.0,0.05712]
[1766945389372,0.12414209,87740.0,87720.0,0.10023144]
[1766945389681,0.02391064,87739.0,87720.0,0.10023144]
[1766945389880,0.05712,87741.0,87720.0,0.10023144]
[1766945390079,0.02390918,87740.0,87720.0,0.10023144]
[1766945390279,0.0239082,87739.0,87720.0,0.10023144]
[1766945390471,0.05712,87741.0,87720.0,0.10023144]
[1766945390671,0.02390475,87740.0,87720.0,0.10023144]
[1766945390872,0.02390475,87739.0,87720.0,0.10023144]
[1766945391074,0.05712,87741.0,87724.0,0.0114072]
[1766945391274,0.02389679,87740.0,87724.0,0.0114072]
[1766945391474,0.02389679,87739.0,87724.0,0.0114072]
[1766945391671,0.0114048,87744.0,87724.0,0.0114072]
[1766945391881,0.02389559,87743.0,87724.0,0.0114072]
[1766945392077,0.02389559,87742.0,87724.0,0.0114072]
[1766945392384,0.02389559,87741.0,87724.0,0.0114072]
[1766945392580,0.02389559,87740.0,87726.0,0.011407]
[1766945392887,0.00017094,87742.0,87727.0,0.05712]
[1766945393085,0.02389459,87741.0,87727.0,0.05712]
[1766945393286,0.02389459,87740.0,87727.0,0.05712]
[1766945393484,0.00017094,87742.0,87727.0,0.05712]
[1766945393789,0.02389393,87741.0,87727.0,0.05712]
[1766945393990,0.02389393,87740.0,87727.0,0.05712]
[1766945394180,0.00017094,87742.0,87727.0,0.05712]
[1766945394380,0.02389403,87741.0,87727.0,0.05712]
[1766945394580,0.02389403,87740.0,87727.0,0.05712]
[1766945394888,0.00017094,87742.0,87727.0,0.05712]
[1766945395088,0.02389356,87741.0,87727.0,0.05712]
[1766945395287,0.02389356,87740.0,87727.0,0.05712]
[1766945395478,0.00017094,87742.0,87727.0,0.05712]
[1766945395680,0.02389332,87741.0,87727.0,0.05712]
[1766945395880,0.02389332,87740.0,87727.0,0.05712]
[1766945396189,0.00017094,87742.0,87727.0,0.05712]
[1766945400196,0.0114052,87741.0,87727.0,0.05712]
[1766945400690,0.0114054,87739.0,87727.0,0.04212]
[1766945400996,0.0114055,87738.0,87725.0,0.00612]
[1766945401579,0.0114051,87741.0,87725.0,0.00612]
[1766945401785,0.00490481,87745.0,87730.0,0.10023144]
[1766945402180,0.00490481,87745.0,87730.0,0.11163794]
[1766945409001,0.00490481,87745.0,87731.0,0.05712]
[1766945411803,0.00490481,87745.0,87732.0,0.0114063]
[1766945412602,0.00490481,87745.0,87731.0,0.05712]
[1766945426414,0.01630941,87745.0,87731.0,0.05712]
[1766945427316,0.0114046,87745.0,87731.0,0.05712]
[1766945427612,0.00017094,87746.0,87729.0,0.05712]
[1766945427803,0.0114055,87739.0,87727.0,0.05712]
[1766945428618,0.0114056,87737.0,87727.0,0.05712]
[1766945428909,0.0242055,87736.0,87725.0,0.05712]
[1766945430319,0.0242055,87735.0,87725.0,0.05712]
[1766945430520,0.0242055,87734.0,87725.0,0.05712]
[1766945430721,0.0242055,87733.0,87725.0,0.05712]
[1766945430922,0.0242055,87732.0,87725.0,0.05712]
[1766945431114,0.0242055,87731.0,87725.0,0.05712]
[1766945431312,0.0092055,87730.0,87725.0,0.05712]
[1766945431514,0.0685251,87741.0,87725.0,0.05712]
[1766945434721,0.05712,87741.0,87725.0,0.05712]
[1766945435423,0.05712,87741.0,87725.0,0.0685271]
[1766945436720,0.0114047,87745.0,87725.0,0.0685271]
[1766945436922,0.15408,87744.0,87725.0,0.0685271]
[1766945437520,0.0114049,87743.0,87725.0,0.05712]
[1766945437824,0.15408,87744.0,87725.0,0.05712]
[1766945438423,0.15408,87744.0,87726.0,0.011407]
[1766945439117,0.15408,87744.0,87728.0,0.0114067]
[1766945439526,0.00017094,87746.0,87728.0,0.0114067]
[1766945439728,0.06869544,87746.0,87726.0,0.011407]
[1766945441232,0.0114047,87744.0,87725.0,0.05712]
[1766945442129,0.0114047,87744.0,87726.0,0.011407]
[1766945443325,0.02414455,87743.0,87726.0,0.011407]
[1766945443532,0.02414455,87742.0,87726.0,0.011407]
[1766945443734,0.02414455,87741.0,87726.0,0.011407]
[1766945443922,0.02414455,87740.0,87726.0,0.011407]
[1766945444122,0.02414455,87739.0,87726.0,0.011407]
[1766945444322,0.02414455,87738.0,87726.0,0.011407]
[1766945444525,0.02414455,87737.0,87726.0,0.011407]
[1766945444720,0.02414455,87736.0,87726.0,0.011407]
[1766945444930,0.02414455,87735.0,87726.0,0.011407]
[1766945445132,0.0114047,87744.0,87726.0,0.011407]
[1766945445439,0.0241446,87743.0,87726.0,0.011407]
[1766945445625,0.0241446,87742.0,87726.0,0.011407]
[1766945445823,0.0241446,87741.0,87726.0,0.011407]
[1766945446023,0.0241446,87740.0,87726.0,0.011407]
[1766945446223,0.0241446,87739.0,87726.0,0.011407]
[1766945446425,0.0241446,87738.0,87726.0,0.011407]
[1766945446632,0.0241446,87737.0,87726.0,0.011407]
[1766945446932,0.0031446,87736.0,87726.0,0.011407]
[1766945447123,0.0114047,87744.0,87726.0,0.011407]
[1766945453330,0.00017094,87746.0,87725.0,0.05712]
[1766945453531,0.00017094,87746.0,87729.0,0.0114066]
[1766945454733,0.00017094,87746.0,87725.0,0.05712]
[1766945454734,0.05712,87757.0,87734.0,0.0114059]
[1766945454939,0.05712,87757.0,87734.0,0.05712]
[1766945455340,0.0114039,87751.0,87734.0,0.05712]
[1766945455940,0.01157461,87751.0,87734.0,0.05729094]
[1766945457537,0.0114051,87742.0,87734.0,0.05729094]
[1766945457737,0.0114052,87741.0,87730.0,0.05712]
[1766945457943,0.0114048,87744.0,87730.0,0.05712]
[1766945459143,0.02407012,87743.0,87730.0,0.05712]
[1766945459338,0.02407012,87742.0,87730.0,0.05712]
[1766945459540,0.0114048,87744.0,87728.0,0.00017094]
[1766945459740,0.02406963,87743.0,87728.0,0.05729094]
[1766945459937,0.02406963,87742.0,87728.0,0.05729094]
[1766945460138,0.0114048,87744.0,87728.0,0.05729094]
[1766945460436,0.02406957,87743.0,87728.0,0.05729094]
[1766945460637,0.02406957,87742.0,87728.0,0.05729094]
[1766945460836,0.0114048,87744.0,87728.0,0.05729094]
[1766945461045,0.02406954,87743.0,87728.0,0.05729094]
[1766945461343,0.02406954,87742.0,87728.0,0.05729094]
[1766945461544,0.0114048,87744.0,87728.0,0.05729094]
[1766945461844,0.02406933,87743.0,87728.0,0.05729094]
[1766945462045,0.02406933,87742.0,87728.0,0.05729094]
[1766945462235,0.0114048,87744.0,87728.0,0.05729094]
[1766945462435,0.02406925,87743.0,87728.0,0.05729094]
[1766945462634,0.02406925,87742.0,87728.0,0.05729094]
[1766945462835,0.0114048,87744.0,87728.0,0.05729094]
[1766945463050,0.02406926,87743.0,87728.0,0.05729094]
[1766945463247,0.02406926,87742.0,87728.0,0.05729094]
[1766945463438,0.0114048,87744.0,87728.0,0.05729094]
[1766945463635,0.0240693,87743.0,87728.0,0.05729094]
[1766945463837,0.0114051,87741.0,87728.0,0.05729094]
[1766945465243,0.02406961,87740.0,87728.0,0.05729094]
[1766945465440,0.02406961,87739.0,87728.0,0.05729094]
[1766945465641,0.02406961,87738.0,87728.0,0.05729094]
[1766945465844,0.0114048,87744.0,87728.0,0.05729094]
[1766945466045,0.02406993,87743.0,87728.0,0.05729094]
[1766945466343,0.02406993,87742.0,87728.0,0.05729094]
[1766945466645,0.02406993,87741.0,87728.0,0.05729094]
[1766945466843,0.02406993,87740.0,87728.0,0.05729094]
[1766945467044,0.02406993,87739.0,87728.0,0.05729094]
[1766945467245,0.02406993,87738.0,87728.0,0.05729094]
[1766945467440,0.0114048,87744.0,87728.0,0.05729094]
[1766945467641,0.02407025,87743.0,87728.0,0.05729094]
[1766945467842,0.02407025,87742.0,87728.0,0.05729094]
[1766945468141,0.02407022,87741.0,87728.0,0.05729094]
[1766945468348,0.02407022,87740.0,87728.0,0.05729094]
[1766945468547,0.02407022,87739.0,87728.0,0.05729094]
[1766945468847,0.02407022,87738.0,87728.0,0.05729094]
[1766945469145,0.0114048,87744.0,87728.0,0.05729094]
[1766945469347,0.02407063,87743.0,87728.0,0.05729094]
[1766945469549,0.02407063,87742.0,87728.0,0.05729094]
[1766945469747,0.02407063,87741.0,87728.0,0.05729094]
[1766945469948,0.02407063,87740.0,87728.0,0.05729094]
[1766945470248,0.02407063,87739.0,87728.0,0.05729094]
[1766945470442,0.02407063,87738.0,87728.0,0.05729094]
[1766945470642,0.0114048,87744.0,87728.0,0.05729094]
[1766945470840,0.02407069,87743.0,87728.0,0.05729094]
[1766945471044,0.02407069,87742.0,87728.0,0.05729094]
[1766945471243,0.02407069,87741.0,87728.0,0.05729094]
[1766945471448,0.02407069,87740.0,87728.0,0.05729094]
[1766945471651,0.02407069,87739.0,87728.0,0.05729094]
[1766945471850,0.02407069,87738.0,87728.0,0.05729094]
[1766945472050,0.0114048,87744.0,87728.0,0.05729094]
[1766945472244,0.02407086,87743.0,87728.0,0.05729094]
[1766945472445,0.02407086,87742.0,87728.0,0.05729094]
[1766945472644,0.02407086,87741.0,87728.0,0.05729094]
[1766945472847,0.02407086,87740.0,87728.0,0.05729094]
[1766945473147,0.02407086,87739.0,87728.0,0.05729094]
[1766945473348,0.02407086,87738.0,87728.0,0.05729094]
[1766945473546,0.0114048,87744.0,87728.0,0.05729094]
[1766945473747,0.0240715,87743.0,87728.0,0.05729094]
[1766945474045,0.0240715,87742.0,87728.0,0.05729094]
[1766945474245,0.0240715,87741.0,87728.0,0.05729094]
[1766945474446,0.0240715,87740.0,87728.0,0.05729094]
[1766945474648,0.0240715,87739.0,87728.0,0.05729094]
[1766945474957,0.0240715,87738.0,87728.0,0.05729094]
[1766945475156,0.0114048,87744.0,87728.0,0.05729094]
[1766945475348,0.02407269,87743.0,87728.0,0.05729094]
[1766945475550,0.02407269,87742.0,87728.0,0.05729094]
[1766945475853,0.02407269,87741.0,87728.0,0.05729094]
[1766945476453,0.0114047,87745.0,87728.0,0.05729094]
[1766945476653,0.02407352,87744.0,87728.0,0.05729094]
[1766945476849,0.02407352,87743.0,87728.0,0.05729094]
[1766945477054,0.02407352,87742.0,87728.0,0.05729094]
[1766945477255,0.02407352,87741.0,87728.0,0.05729094]
[1766945477555,0.0114047,87745.0,87728.0,0.05729094]
[1766945477855,0.02407413,87744.0,87728.0,0.05729094]
[1766945478056,0.02407413,87743.0,87728.0,0.05729094]
[1766945478253,0.02407413,87742.0,87728.0,0.05729094]
[1766945478562,0.0114047,87745.0,87728.0,0.05729094]
[1766945478857,0.02407504,87744.0,87728.0,0.05729094]
[1766945479058,0.02407504,87743.0,87728.0,0.05729094]
[1766945479240,0.02407504,87742.0,87728.0,0.05729094]
[1766945479541,0.02407504,87741.0,87728.0,0.05729094]
[1766945479745,0.0114047,87745.0,87728.0,0.05729094]
[1766945479945,0.02407595,87744.0,87728.0,0.05729094]
[1766945480153,0.02407595,87743.0,87728.0,0.05729094]
[1766945480356,0.02407595,87742.0,87728.0,0.05729094]
[1766945480556,0.02407595,87741.0,87728.0,0.05729094]
[1766945480756,0.0114047,87745.0,87728.0,0.05729094]
[1766945480951,0.02407703,87744.0,87728.0,0.05729094]
[1766945481151,0.02407703,87743.0,87728.0,0.05729094]
[1766945481356,0.0114047,87745.0,87728.0,0.05729094]
[1766945481357,0.02407703,87742.0,87728.0,0.05729094]
[1766945481553,0.02407703,87741.0,87728.0,0.05729094]
[1766945481748,0.0114047,87745.0,87728.0,0.05729094]
[1766945481944,0.02407829,87744.0,87728.0,0.05729094]
[1766945482146,0.02407829,87743.0,87728.0,0.05729094]
[1766945482351,0.02407829,87742.0,87728.0,0.05729094]
[1766945482647,0.02407829,87741.0,87728.0,0.05729094]
[1766945482852,0.0114047,87745.0,87728.0,0.05729094]
[1766945483152,0.02407983,87744.0,87728.0,0.05729094]
[1766945483448,0.03548473,87743.0,87728.0,0.05729094]
[1766945483649,0.02407983,87742.0,87728.0,0.05729094]
[1766945483852,0.02407983,87741.0,87728.0,0.05729094]
[1766945484049,0.0114045,87746.0,87728.0,0.05729094]
[1766945484257,0.02408183,87745.0,87728.0,0.05729094]
[1766945484458,0.02408183,87744.0,87728.0,0.05729094]
[1766945484658,0.02408183,87743.0,87728.0,0.05729094]
[1766945484858,0.02408183,87742.0,87728.0,0.05729094]
[1766945485060,0.02408183,87741.0,87728.0,0.05729094]
[1766945485260,0.02408183,87740.0,87728.0,0.05729094]
[1766945485459,0.02408183,87739.0,87728.0,0.05729094]
[1766945485660,0.0114045,87746.0,87728.0,0.05729094]
[1766945485863,0.0240849,87745.0,87728.0,0.05729094]
[1766945486166,0.0240849,87744.0,87728.0,0.05729094]
[1766945486359,0.0114045,87746.0,87728.0,0.05729094]
[1766945493270,0.09696,87748.0,87728.0,0.05729094]
[1766945494174,0.0114045,87746.0,87728.0,0.05729094]
[1766945506582,0.0114048,87744.0,87728.0,0.05729094]
[1766945508873,0.011405,87742.0,87728.0,0.05729094]
[1766945509073,0.02402713,87741.0,87728.0,0.05729094]
[1766945512279,0.02402728,87740.0,87728.0,0.05729094]
[1766945512580,0.011405,87742.0,87728.0,0.05729094]
[1766945512780,0.02402729,87741.0,87728.0,0.05729094]
[1766945512980,0.02402729,87740.0,87728.0,0.05729094]
[1766945513182,0.011405,87742.0,87728.0,0.05729094]
[1766945513376,0.02402714,87741.0,87728.0,0.05729094]
[1766945513575,0.02402714,87740.0,87728.0,0.05729094]
[1766945513777,0.011405,87742.0,87728.0,0.05729094]
[1766945513977,0.02402713,87741.0,87728.0,0.05729094]
[1766945514178,0.02402713,87740.0,87728.0,0.05729094]
[1766945514384,0.0114049,87743.0,87728.0,0.05729094]
[1766945514685,0.02402714,87742.0,87728.0,0.05729094]
[1766945514874,0.02402714,87741.0,87728.0,0.05729094]
[1766945515075,0.02402714,87740.0,87728.0,0.05729094]
[1766945515275,0.0114049,87743.0,87728.0,0.05729094]
[1766945515589,0.02402711,87742.0,87728.0,0.05729094]
[1766945515786,0.02402711,87741.0,87728.0,0.05729094]
[1766945516086,0.02402711,87740.0,87728.0,0.05729094]
[1766945516280,0.0114045,87746.0,87728.0,0.05729094]
[1766945516482,0.02403601,87745.0,87728.0,0.05729094]
[1766945516675,0.02403601,87744.0,87728.0,0.05729094]
[1766945516875,0.02403601,87743.0,87728.0,0.05729094]
[1766945517075,0.02403601,87742.0,87728.0,0.05729094]
[1766945517277,0.02403601,87741.0,87728.0,0.05729094]
[1766945517480,0.02403601,87740.0,87728.0,0.05729094]
[1766945517680,0.0114045,87746.0,87728.0,0.05729094]
[1766945517880,0.02403594,87745.0,87728.0,0.05729094]
[1766945518082,0.03544074,87744.0,87728.0,0.05729094]
[1766945518282,0.02403594,87743.0,87728.0,0.05729094]
[1766945518484,0.02403594,87742.0,87728.0,0.05729094]
[1766945518683,0.02403594,87741.0,87728.0,0.05729094]
[1766945518983,0.02403594,87740.0,87728.0,0.05729094]
[1766945519188,0.02403594,87739.0,87728.0,0.05729094]
[1766945519487,0.0114048,87744.0,87728.0,0.05729094]
[1766945519791,0.02403597,87743.0,87728.0,0.05729094]
[1766945519984,0.02403597,87742.0,87728.0,0.05729094]
[1766945520178,0.02403597,87741.0,87728.0,0.05729094]
[1766945520379,0.02403597,87740.0,87728.0,0.05729094]
[1766945520579,0.02403597,87739.0,87728.0,0.05729094]
[1766945520780,0.0114048,87744.0,87728.0,0.05729094]
[1766945520980,0.02403593,87743.0,87728.0,0.05729094]
[1766945521187,0.02403593,87742.0,87728.0,0.05729094]
[1766945521377,0.02403593,87741.0,87728.0,0.05729094]
[1766945521581,0.02403593,87740.0,87728.0,0.00017094]
[1766945521791,0.02403593,87739.0,87729.0,0.05712]
[1766945521993,0.15408,87748.0,87729.0,0.05712]
[1766945522178,0.02403594,87747.0,87729.0,0.05712]
[1766945522383,0.02403594,87746.0,87729.0,0.05712]
[1766945522582,0.02403594,87745.0,87729.0,0.05712]
[1766945522793,0.02403594,87744.0,87729.0,0.05712]
[1766945522984,0.02403594,87743.0,87729.0,0.05712]
[1766945523289,0.02403594,87742.0,87729.0,0.05712]
[1766945523491,0.00017071,87751.0,87730.0,0.10017246]
[1766945523685,0.10017246,87760.0,87740.0,0.10017246]
[1766945524193,0.10017246,87760.0,87739.0,0.05712]
[1766945524383,0.0114029,87758.0,87739.0,0.05712]
[1766945524578,0.00017094,87757.0,87739.0,0.05712]
[1766945527593,0.00017094,87757.0,87740.0,0.10017246]
[1766945529297,0.00017094,87757.0,87739.0,0.05712]
[1766945529985,0.0114033,87756.0,87739.0,0.05712]
[1766945530892,0.00017094,87757.0,87739.0,0.05712]
[1766945531298,0.0114035,87753.0,87739.0,0.05712]
[1766945531689,0.10017246,87750.0,87739.0,0.05712]
[1766945535695,0.02391141,87749.0,87739.0,0.05712]
[1766945535891,0.02391141,87748.0,87739.0,0.05712]
[1766945536096,0.10017246,87750.0,87739.0,0.05712]
[1766945536396,0.02391141,87749.0,87739.0,0.05712]
[1766945536587,0.02391141,87748.0,87739.0,0.05712]
[1766945536788,0.0114036,87753.0,87739.0,0.05712]
[1766945537089,0.02391116,87752.0,87739.0,0.05712]
[1766945537289,0.02391116,87751.0,87739.0,0.05712]
[1766945537489,0.02391116,87750.0,87739.0,0.05712]
[1766945537690,0.02391116,87749.0,87739.0,0.05712]
[1766945537891,0.02391116,87748.0,87739.0,0.05712]
[1766945538104,0.0114036,87753.0,87739.0,0.05712]
[1766945538296,0.02391101,87752.0,87739.0,0.05712]
[1766945538495,0.02391101,87751.0,87739.0,0.05712]
[1766945538695,0.02391101,87750.0,87739.0,0.05712]
[1766945538894,0.02391101,87749.0,87739.0,0.05712]
[1766945539096,0.02391101,87748.0,87739.0,0.05712]
[1766945539300,0.0114036,87753.0,87739.0,0.05712]
[1766945539492,0.02391113,87752.0,87739.0,0.05712]
[1766945539684,0.02391113,87751.0,87739.0,0.05712]
[1766945539888,0.02391113,87750.0,87739.0,0.05712]
[1766945540188,0.02391113,87749.0,87739.0,0.05712]
[1766945540389,0.02391113,87748.0,87739.0,0.05712]
[1766945540596,0.0114036,87753.0,87739.0,0.05712]
[1766945540898,0.0114038,87751.0,87739.0,0.05712]
[1766945541100,0.02391135,87750.0,87739.0,0.05712]
[1766945541296,0.02391135,87749.0,87739.0,0.05712]
[1766945541596,0.02391135,87748.0,87739.0,0.05712]
[1766945541796,0.0114035,87754.0,87739.0,0.05712]
[1766945542096,0.02391172,87753.0,87739.0,0.05712]
[1766945542287,0.02391172,87752.0,87739.0,0.05712]
[1766945542484,0.02391172,87751.0,87739.0,0.05712]
[1766945542684,0.02391172,87750.0,87739.0,0.05712]
[1766945542898,0.02391172,87749.0,87739.0,0.05712]
[1766945543102,0.02391172,87748.0,87739.0,0.05712]
[1766945543399,0.02391172,87747.0,87739.0,0.05712]
[1766945543601,0.02391172,87746.0,87739.0,0.05712]
[1766945543803,0.0114035,87754.0,87739.0,0.05712]
[1766945544002,0.02391287,87753.0,87739.0,0.05712]
[1766945544301,0.0114035,87754.0,87739.0,0.05712]
[1766945544302,0.02391287,87752.0,87739.0,0.05712]
[1766945544601,0.02391287,87751.0,87739.0,0.05712]
[1766945544798,0.02391287,87750.0,87739.0,0.05712]
[1766945545101,0.02391287,87749.0,87739.0,0.05712]
[1766945545301,0.0114035,87754.0,87739.0,0.05712]
[1766945545302,0.02391287,87748.0,87739.0,0.05712]
[1766945545505,0.02391287,87747.0,87739.0,0.05712]
[1766945545802,0.02391287,87746.0,87739.0,0.05712]
[1766945545990,0.02391287,87745.0,87739.0,0.05712]
[1766945546188,0.02391287,87744.0,87739.0,0.05712]
[1766945546387,0.0114035,87754.0,87739.0,0.05712]
[1766945551507,0.07259617,87754.0,87739.0,0.05712]
[1766945553411,0.06119267,87753.0,87739.0,0.05712]
[1766945555212,0.0114035,87754.0,87739.0,0.05712]
[1766945556412,0.0114037,87752.0,87739.0,0.05712]
[1766945556711,0.0685234,87755.0,87739.0,0.05712]
[1766945558214,0.0114036,87753.0,87739.0,0.05712]
[1766945561416,0.0114039,87751.0,87739.0,0.05712]
[1766945566219,9.4e-07,87757.0,87739.0,0.05712]
[1766945566515,0.02284693,87780.0,87739.0,0.05712]
[1766945566516,0.02112,87760.0,87742.0,0.0114049]
[1766945566717,0.05712,87762.0,87744.0,0.0114046]
[1766945567314,0.05712,87762.0,87744.0,0.01157554]
[1766945567621,0.0114018,87767.0,87747.0,0.0114043]
[1766945567812,0.15408,87766.0,87747.0,0.0114043]
[1766945568013,0.15408,87765.0,87747.0,0.0114043]
[1766945568214,0.10454625,87780.0,87744.0,0.00017094]
[1766945568215,0.09696,87772.0,87746.0,0.09696]
[1766945568521,0.0114008,87774.0,87746.0,0.09696]
[1766945568718,0.05712,87772.0,87746.0,0.09696]
[1766945569213,0.0114016,87768.0,87746.0,0.09696]
[1766945569416,0.0685212,87771.0,87750.0,0.0114039]
[1766945569616,0.0685212,87771.0,87751.0,0.05712]
[1766945576417,0.0114015,87769.0,87751.0,0.05712]
[1766945578526,0.05712,87771.0,87751.0,0.05712]
[1766945580928,0.05712,87771.0,87752.0,0.0114037]
[1766945581428,0.0114014,87770.0,87751.0,0.05712]
[1766945582729,0.0114018,87767.0,87751.0,0.05712]
[1766945582928,0.0114021,87765.0,87751.0,0.05712]
[1766945583832,0.05712,87771.0,87744.0,0.00017094]
[1766945584022,0.0114024,87762.0,87744.0,0.00017094]
[1766945584327,0.0114024,87762.0,87745.0,0.15028]
[1766945585029,0.0114027,87760.0,87745.0,0.15028]
[1766945585723,0.0114027,87760.0,87744.0,0.00017094]
[1766945585724,0.011403,87758.0,87744.0,0.00017094]
[1766945586728,0.0114033,87756.0,87744.0,0.00017094]
[1766945587932,0.0114028,87759.0,87744.0,0.00017094]
[1766945589236,0.05708,87761.0,87744.0,0.00017094]
[1766945592935,0.05708,87761.0,87744.0,0.01157564]
[1766945594037,0.05708,87761.0,87744.0,0.00017094]
[1766945600138,0.05708,87761.0,87744.0,0.01157564]
[1766945600939,0.05708,87761.0,87744.0,0.00017094]
[1766945605245,0.05708,87761.0,87745.0,0.0114045]
[1766945606448,0.02426698,87760.0,87745.0,0.0114045]
[1766945606650,0.02426698,87759.0,87744.0,0.00017094]
[1766945606848,0.02426698,87758.0,87744.0,0.00017094]
[1766945607047,0.02426698,87757.0,87744.0,0.00017094]
[1766945607350,0.02426698,87756.0,87744.0,0.00017094]
[1766945607551,0.02426698,87755.0,87744.0,0.00017094]
[1766945607740,0.02426698,87754.0,87744.0,0.00017094]
[1766945608035,0.05708,87761.0,87744.0,0.00017094]
[1766945608235,0.02426801,87760.0,87744.0,0.00017094]
[1766945608434,0.02426801,87759.0,87744.0,0.00017094]
[1766945608634,0.02426801,87758.0,87744.0,0.00017094]
[1766945608847,0.02426801,87757.0,87744.0,0.00017094]
[1766945609046,0.02426801,87756.0,87744.0,0.00017094]
[1766945609250,0.02426801,87755.0,87744.0,0.00017094]
[1766945609550,0.02426801,87754.0,87745.0,0.0114046]
[1766945609751,0.05708,87761.0,87745.0,0.0114046]
[1766945609946,0.02427094,87760.0,87744.0,0.00017094]
[1766945610148,0.02427094,87759.0,87744.0,0.00017094]
[1766945610445,0.02427094,87758.0,87744.0,0.00017094]
[1766945610648,0.02427094,87757.0,87744.0,0.00017094]
[1766945610847,0.02427094,87756.0,87744.0,0.00017094]
[1766945611047,0.02427094,87755.0,87744.0,0.00017094]
[1766945611351,0.02427094,87754.0,87744.0,0.00017094]
[1766945611551,0.1001332,87760.0,87744.0,0.00017094]
[1766945611749,0.02427287,87759.0,87744.0,0.00017094]
[1766945611943,0.02427287,87758.0,87744.0,0.00017094]
[1766945612144,0.02427287,87757.0,87744.0,0.00017094]
[1766945612347,0.02427287,87756.0,87744.0,0.00017094]
[1766945612644,0.02427287,87755.0,87744.0,0.00017094]
[1766945612845,0.02427287,87754.0,87744.0,0.00017094]
[1766945613047,0.1001332,87760.0,87744.0,0.00017094]
[1766945613249,0.02427527,87759.0,87744.0,0.00017094]